Cogmind - Beta 13 @@@ ROGUE MODE // 2024.03.17 @ 02:12:31 Player: jpka Result: Destroyed by as-63002 with Assembled Rifle Performance ------------- Evolutions (0) 0 Regions Visited (2) 400 Robots Destroyed (12) 60 Value Destroyed (282) 282 Prototype IDs (0) 0 Alien Tech Used (0) 0 Bonus (0) 0 TOTAL SCORE: 742 Bonus ------- None Cogmind --------- Core Integrity 0/250 Matter 269/300 Energy 160/160 System Corruption 0% Temperature Cool (0) Movement Core (250) Ox4 Location -10/Mines Parts ------- > --- POWER (1) -------- Light Nuclear Core > --- PROPULSION (2) --- (None) > --- UTILITY (2) ------ Small Storage Unit Hacking Suite > --- WEAPON (2) ------- Particle Gun Light Assault Rifle > --- INVENTORY (8) ---- Light Ion Engine Heat Sink Huge Storage Unit Grenade Launcher Peak State ------------ > --- POWER ------------ Light Nuclear Core > --- PROPULSION ------- Hover Unit Hover Unit > --- UTILITY ---------- Small Storage Unit Hacking Suite > --- WEAPON ----------- Particle Gun Light Assault Rifle > --- INVENTORY -------- Light Ion Engine Heat Sink Huge Storage Unit Grenade Launcher [Rating: 12] Favorites ----------- Power Light Ion Engine Engine Light Ion Engine Power Core Light Nuclear Core Propulsion Compact Wheel Wheel Compact Wheel Hover Unit Hover Unit Utility Small Storage Unit Storage Small Storage Unit Hackware Hacking Suite Weapon Medium Laser Energy Gun Medium Laser Ballistic Gun Assault Rifle Build | -11 -10 -10 ------- Run | Yrd Mat Min Slots Evolved . | . . . Power . | . . . Propulsion . | . . . Utility . | . . . Weapon . | . . . Parts Attached 23 | 6 4 13 Power 4 | 1 . 3 Engine 3 | 1 . 2 Core 1 | . . 1 Reactor . | . . . Propulsion 8 | 2 . 6 Treads . | . . . Leg . | . . . Wheel 4 | 2 . 2 Hover 4 | . . 4 Flight . | . . . Utility 4 | 1 3 . Device . | . . . Storage 3 | 1 2 . Processor . | . . . Hackware 1 | . 1 . Protection . | . . . Artifact . | . . . Weapon 7 | 2 1 4 Energy Gun 5 | 2 1 2 Energy Cannon . | . . . Ballistic Gun 2 | . . 2 Ballistic Cannon . | . . . Launcher . | . . . Special Weapon . | . . . Impact Weapon . | . . . Slashing Weapon . | . . . Piercing Weapon . | . . . Special Melee Weapon . | . . . Unidentified Prototypes . | . . . Parts Lost 10 | . . 10 Power 2 | . . 2 Propulsion 5 | . . 5 Utility . | . . . Weapon 3 | . . 3 Highest Loss Streak 6 | . . 6 To Critical Strikes . | . . . Average Slot Usage (%) 94 | . 97 91 Engine 12 | . 14 10 Core 1 | . . 3 Wheel 17 | . 28 6 Hover 7 | . . 15 Storage 14 | . 14 14 Hackware 12 | . 11 14 Energy Gun 21 | . 28 15 Ballistic Gun 4 | . . 10 Naked Turns . | . . . Heaviest Build 14 | 11 12 14 Greatest Support 32 | 32 32 32 Greatest Overweight (x) 4 | . . 4 Average Overweight (x) . | . . . Largest Inventory Capacity 25 | 8 25 8 Average Capacity 7 | 6 8 8 Most Carried 8 | 4 8 8 Average Carried 5 | 1 5 5 Final Capacity 8 | 8 8 8 Final Carried 8 | 2 8 4 Class Distribution -------------------- 62% | Mutant 37% | Scavenger-Mutant Dominant Class ---------------- Mutant | -10/Materials Scavenger-Mutant | -10/Mines Resources | -11 -10 -10 ----------- Run | Yrd Mat Min Matter Collected 401 | 249 31 121 Remotely . | . . . Salvage Created 344 | . 164 180 Parts 24 | . 12 12 Haulers Intercepted . | . . . Recyclers Shooed . | . . . Parts Field Recycled . | . . . Retrieved Matter . | . . . Parts Self-Destructed . | . . . Prevented . | . . . Kills | -11 -10 -10 ------- Run | Yrd Mat Min Combat Hostiles Destroyed 12 | . 5 7 Guns 12 | . 5 7 Classes Destroyed 4 | . 3 1 Operator 1 | . 1 . Swarmer 6 | . 3 3 Grunt 5 | . 2 3 Assembled 1 | . . 1 Best Kill Streak 4 | . 4 3 Combat Bots Only 4 | . 4 3 Max Kills in Single Turn 2 | . 1 2 Gunslinging . | . . . Exploded . | . . . Melee . | . . . Uniques/NPCs Destroyed . | . . . Combat | -11 -10 -10 -------- Run | Yrd Mat Min Hostile Shots Fired 87 | . 17 70 Missed 17 | . 3 14 Damage Taken 938 | . 119 819 Core 253 | . 37 216 Absorbed by Shields . | . . . Core Remaining (%) 100 | 100 . . Volleys Fired 40 | . 9 31 Largest 2 | . 2 2 Hottest 90 | . 90 90 Shots Fired 72 | . 18 54 Gun 72 | . 18 54 Cannon . | . . . Launcher . | . . . Special . | . . . Kinetic 21 | . . 21 Thermal 35 | . 10 25 Explosive . | . . . Electromagnetic 16 | . 8 8 Robot Hit Streak 6 | . 3 6 Robot Miss Streak 5 | . 3 5 Penetration Max . | . . . Secondary Targets . | . . . Shots Hit Robots 41 | . 10 31 Core Hits 25 | . 9 16 Critical Kills . | . . . Critical Parts Destroyed . | . . . Critical Strikes 1 | . . 1 Burn 1 | . . 1 Melee Attacks . | . . . Impact . | . . . Slashing . | . . . Piercing . | . . . Sneak Attacks . | . . . Combat Hostiles . | . . . Follow-up Attacks . | . . . Damage Inflicted 558 | . 121 437 Guns 558 | . 121 437 Cannons . | . . . Explosions . | . . . Melee . | . . . Ramming . | . . . Kinetic 144 | . . 144 Thermal 329 | . 74 255 Explosive . | . . . Electromagnetic 85 | . 47 38 Impact . | . . . Slashing . | . . . Piercing . | . . . Highest Corruption . | . . . Average Corruption . | . . . Corruption Purged . | . . . Corruption Blocked . | . . . Overload Shots . | . . . Overflow Damage . | . . . Projectiles . | . . . Explosions . | . . . Melee . | . . . Knockbacks . | . . . Impact . | . . . Kinetic . | . . . Secondary . | . . . Self-Inflicted Damage . | . . . Shots . | . . . Rammed . | . . . Targets Rammed . | . . . Kicked . | . . . Crushed . | . . . Highest Temperature 181 | . 108 181 Average Temperature 56 | . 45 59 Received Heat Transfer 192 | . 24 168 Siege Activations . | . . . Robots Corrupted . | . . . Combat Hostiles . | . . . Parts Fried . | . . . Impact Corruptions . | . . . Robots Melted . | . . . Combat Hostiles . | . . . Parts Melted . | . . . Heat Transferred 950 | . 210 740 Parts Sabotaged . | . . . Parts Stolen . | . . . Parts Stripped . | . . . Power Chain Reactions . | . . . Alert | -11 -10 -10 ------- Run | Yrd Mat Min Peak Influence 182 | . 182 104 Initial 19 | . . 19 Average 63 | . 73 72 Maximum Alert Level . | . . . Low Security (%) 100 | 100 100 100 Level 1 . | . . . Level 2 . | . . . Level 3 . | . . . Level 4 . | . . . Level 5 . | . . . High Security . | . . . Max Security . | . . . Squads Dispatched 1 | . 1 . Investigation . | . . . Extermination . | . . . Reinforcement 1 | . 1 . Assault . | . . . Garrison . | . . . Intercept . | . . . Searches Triggered . | . . . Construction Impeded . | . . . Haulers Reinforced . | . . . Active Scanning Responses . | . . . Cargo Convoy Interrupts . | . . . Stealth | -11 -10 -10 --------- Run | Yrd Mat Min Distress Signals 1 | . 1 . Communications Jammed . | . . . Distress Signals . | . . . Times Spotted 20 | . 8 12 Peak Tracking Total 4 | . 4 3 Tactical Retreats 2 | . 1 1 Traps | -11 -10 -10 ------- Run | Yrd Mat Min Traps Triggered . | . . . Indirectly . | . . . Trap Hack Attempts . | . . . Triggered . | . . . Disarmed . | . . . Reprogrammed . | . . . Reused . | . . . Traps Extracted . | . . . Installed . | . . . Triggered . | . . . Machines | -11 -10 -10 ---------- Run | Yrd Mat Min Machines Disabled 1 | . 1 . Max in Single Turn 1 | . 1 . Machines Repaired . | . . . Machines Dismantled . | . . . Machines Sabotaged . | . . . Overloaded Fab Kills . | . . . Hacking | -11 -10 -10 --------- Run | Yrd Mat Min Machines Accessed 2 | . 2 . Terminals 2 | . 2 . Fabricators . | . . . Repair Stations . | . . . Recycling Units . | . . . Scanalyzers . | . . . Garrison Access . | . . . Total Hacks 5 | . 5 . Successful 3 | . 3 . Failed 2 | . 2 . Catastrophic 1 | . 1 . Database Lockouts . | . . . Manual 4 | . 4 . Terminals 5 | . 5 . Fabricators . | . . . Repair Stations . | . . . Recycling Units . | . . . Scanalyzers . | . . . Garrison Access . | . . . Terminal Hacks 1 | . 1 . Unreport Threat 1 | . 1 . Fabricator Hacks . | . . . Repair Station Hacks . | . . . Recycling Unit Hacks . | . . . Scanalyzer . | . . . Garrison Access Hacks . | . . . Unauthorized Hacks 2 | . 2 . Terminals 2 | . 2 . Botnet 2 | . 2 . Fabricators . | . . . Repair Stations . | . . . Recycling Units . | . . . Scanalyzers . | . . . Garrison Access . | . . . Data Cores Recovered . | . . . Used . | . . . Hacking Detections 2 | . 2 . Full Trace Events . | . . . Feedback Events . | . . . Feedback Blocked . | . . . Robot Schematics Acquired . | . . . Robots Built . | . . . Authchips . | . . . Time . | . . . Total Robot Build Rating . | . . . Part Schematics Acquired . | . . . Parts Built . | . . . Authchips . | . . . Time . | . . . Total Part Build Rating . | . . . Parts Repaired . | . . . Time . | . . . Parts Recycled . | . . . Recycled Matter . | . . . Retrieved Matter . | . . . Retrieved Components . | . . . Parts Scanalyzed . | . . . Part Schematics Acquired . | . . . Parts Damaged . | . . . Bothacking | -11 -10 -10 ------------ Run | Yrd Mat Min Used RIF Installer . | . . . Robots Hacked . | . . . Non-combat . | . . . Combat . | . . . Robot Hacks Applied . | . . . Relay Couplers Released . | . . . Fabnet Peak Effective % . | . . . Robots Rewired . | . . . Allies Hacked . | . . . Hacks Repelled . | . . . Allies | -11 -10 -10 -------- Run | Yrd Mat Min Total Allies . | . . . Largest Group . | . . . Highest-Rated Group . | . . . Highest-Rated Ally . | . . . Total Orders . | . . . Ally Attacks . | . . . Total Damage . | . . . Kills . | . . . Allies Corrupted . | . . . Allies Melted . | . . . Intel | -11 -10 -10 ------- Run | Yrd Mat Min Robot Analysis Total . | . . . Derelict Logs Recovered . | . . . Drone Launches . | . . . Drone Recoveries . | . . . Exploration | -11 -10 -10 ------------- Run | Yrd Mat Min Turns Passed 542 | 67 250 225 Spaces Moved 388 | 65 209 114 Core 29 | 20 . 9 Treads . | . . . Legs . | . . . Wheels 292 | 45 209 38 Hover 67 | . . 67 Flight . | . . . Fastest Speed 50 | 50 100 56 Average Speed 96 | 84 100 98 Slowest Speed 250 | 100 100 250 Overloaded Moves . | . . . Propulsion Burnouts . | . . . Robots Hopped . | . . . Cave-ins Triggered . | . . . Exploration Rate (%) 19 | 4 25 30 Regions Visited 2 Branch Regions 1 Pre-discovered Areas . | . . . Known Exits Taken . | . . . Unknown Exits Taken 2 | 1 1 . Scrap Searched . | . . . Spaces Dug . | . . . Terrain Destroyed . | . . . Melee . | . . . Projectile . | . . . AOE . | . . . Terrain Rammed . | . . . Walls Destroyed . | . . . Machines Disabled . | . . . Actions | -11 -10 -10 --------- Run | Yrd Mat Min Total 480 | 76 230 174 Wait 9 | . . 9 Move 386 | 64 208 114 Hop . | . . . Pick Up 19 | 6 8 5 Fast Attach 2 | 2 . . Attach 14 | 4 1 9 Detach 1 | . . 1 Swap 7 | . 3 4 Drop 2 | . 1 1 Fire 40 | . 9 31 Melee . | . . . Ram . | . . . Kick . | . . . Crush . | . . . Escape Stasis . | . . . Rewire . | . . . Trap . | . . . Miscellaneous . | . . . Route ------- -11/Scrapyard -10/Materials -10/Mines (discovered 1 exit: [*Mat]) History --------- Turn | Location | Event 14 | -11/Scrapyard | Discovered new exit (range 15) 68 | -11/Scrapyard | Entered Materials 269 | -10/Materials | Discovered new exit (range 16) 314 | -10/Materials | Build established: Mutant 318 | -10/Materials | Entered Mines 319 | -10/Mines | Assembled infested the area 392 | -10/Mines | Discovered new exit (range 10) 470 | -10/Mines | Core integrity fell below 50% 516 | -10/Mines | Core integrity fell below 20% 543 | -10/Mines | Destroyed by as-63002 with Assembled Rifle Last Messages --------------- 00409_ as-85617 sneak attacks. 00409_ R-06 Scavenger system corrupted by crushing effect. 00410_ Acquired 3 matter. 00410_ R-06 Scavenger system terminally corrupted. 00410_ U-05 Engineer builds a Wall. 00413_ Acquired 3 matter. 00413_ Knocked back. 00414_ U-05 Engineer lays Concrete. 00422_ as-85617 destroyed. 00429_ Acquired 9 matter. 00459_ Wheel destroyed. 00466_ Lgt. Ion Engine destroyed. 00471_ Wheel destroyed. 00481_ Assault Rifle destroyed. 00485_ G-47 Trooper destroyed. 00487_ Acquired 39 matter. 00489_ Acquired Lgt. Nuclear Core. 00502_ Hover Unit destroyed. Map ----- +----------------------------------------------------+ | ?????????????????????????????????????????????????? | | ?????????????????????????????????????????????????? | | ?????????????????????????????????????????????????? | | ?????????????????????????????????????????????????? | | ?????????????????????????????????????????????????? | | ?????????????????????????????????????????????????? | | ?????????????????????????????????????????????????? | | ?????????????????????????????????????????????????? | | ?????????????????????????????????????????????????? | | ?????????????????????????? #?????????????????????? | | ????????????????????????? #?????????????????????? | | ????????????????????????? #?????????????????????? | | ????????????????????????? #?????????????????????? | | ????????????????????????? #?????????????????????? | | ????????????????????????? #?????????????????????? | | ????????????????????????? #?????????????????????? | | ?????????######?????????? ##????????????????????? | | ????????## ##????????# ?????????????????????? | | ##?????## #????????# #?????????????????????? | | #### ####?????# #??#########??????????? | | #????## ##?# #??????? ?? | | ?# ### #????# #?# = """ #?????? ??? | | ?### ##?#=######a ### """ #????? ???? | | ???## #####??# ## """ #???? #???? | | ????## #???????# ###### # =%=#??? ##??? | | ?????###????????# #???## @ #####=###??# " #??? | | ????????????????# #??## %##### #### #??? | | ????????????????# #??# ! # # #???? | | ????????????????# #??# %!% % ##??? | | ????????????????# #??# ###### ##### !%! #??? | | ????????????????# #??##??????## # ==%= ##??? | | ?????????????#### #########?## =]# #???? | | ?????????????# ###! # # ## ##??? | | ?????????????# #########*##!%* % ###? | | ?????????????# #???????# [% * #? | | ???????????? #???????# ==% % # | | ??????????? ???????###%###%% # | | ?????????? ?????????#=#?##% # | | ?????????### ?????????#*#?###| # # #? | | ???????????## ?????????# #?#### ### #? | | ????????????# ?????????# #???# ##??## #? | | ????????????# ?????????# #???# ##????? ?? | | ????????????## ##????????# #???# #??????? ?? | | ?????????????###?????????? ???# #???????????? | | ?????????????????????????? < ???# #???????????? | | ?????????????????????????? ???## ##???????????? | | ?????????????????????????? ????####????????????? | | ?????????????????????????? ????????????????????? | | ??????????????????????????###????????????????????? | | ?????????????????????????????????????????????????? | +----------------------------------------------------+ Best States ------------- Heat Dissipation 25 Energy Generation 14 Energy Capacity 160 Matter Stores 300 Matter Capacity 300 Sight Range 16 Terrain Scan Density 10 Evasion (%) 53 Offensive Hacking 10 Item Schematics ----------------- None Robot Schematics ------------------ None Fabricated ------------ Nothing Alien Tech Used ----------------- None Achievements -------------- None Challenges ------------ None Game ------ Seed BottomlessScanBeamcaster Manual? 0 Play Time 00:18:15 Cumulative 54.5 hours Start 2024.03.17 @ 01:56:25 End 2024.03.17 @ 02:12:31 Sessions 1 Manual Loads 0 Difficulty Rogue Special Mode None Game No. 38 Rogue 38 Adventurer 0 Explorer 0 Win Type - Total 0 Types 0/0/0/0/0/0/0/0/0 Lore% 12 Gallery% 20 Achievement% 19 Wizard Run 0 Options --------- Layout 1 ASCII 0 Keyboard 1 Movement Arrows Keybinds 0 Fullscreen 1 Font 16/SmallcapsGlow Map View 25x25 Zoom Use 63% Tactical HUD 1 Map Filters NONE Filters NONE Steam 1 RUN: 8db15eb2-07fb-4941-8ff2-2d0a231bfb62